[Event "Titled Tuesday Blitz February 28 Early 2023"]
[White "Postny, Evgeny"]
[Black "Tymrakiewicz, Rafal"]
[WhiteFideId "2804344"]
[BlackFideId "1108832"]
[WhiteElo "2509"]
[BlackElo "2151"]
[Result "1-0"]
[Round "01"]
[TimeControl "180+2"]
[Date "2023.02.28"]
[WhiteClock "0:00:10"]
[BlackClock "0:00:02"]

1. e4 {[%clk 0:02:57]}  Nf6 {[%clk 0:02:59]} 2. e5 {[%clk 0:02:56]}  Nd5 {[%clk 0:03:00]} 3. Nf3 {[%clk 0:02:57]}  d6 {[%clk 0:03:00]} 4. exd6 {[%clk 0:02:57]}  cxd6 {[%clk 0:02:59]} 5. d4 {[%clk 0:02:56]}  g6 {[%clk 0:02:57]} 6. c4 {[%clk 0:02:56]}  Nb6 {[%clk 0:02:57]} 7. Nc3 {[%clk 0:02:57]}  Bg7 {[%clk 0:02:57]} 8. Be2 {[%clk 0:02:57]}  Bg4 {[%clk 0:02:50]} 9. b3 {[%clk 0:02:56]}  O-O {[%clk 0:02:49]} 10. Be3 {[%clk 0:02:55]}  d5 {[%clk 0:02:48]} 11. c5 {[%clk 0:02:53]}  Nc8 {[%clk 0:02:48]} 12. b4 {[%clk 0:02:47]}  a6 {[%clk 0:02:26]} 13. h3 {[%clk 0:02:42]}  Bxf3 {[%clk 0:02:26]} 14. Bxf3 {[%clk 0:02:43]}  e6 {[%clk 0:02:26]} 15. O-O {[%clk 0:02:36]}  Nc6 {[%clk 0:02:26]} 16. Rb1 {[%clk 0:02:35]}  N8e7 {[%clk 0:01:53]} 17. g4 {[%clk 0:02:34]}  f5 {[%clk 0:01:50]} 18. Ne2 {[%clk 0:02:29]}  fxg4 {[%clk 0:01:43]} 19. Bxg4 {[%clk 0:02:28]}  Nf5 {[%clk 0:01:44]} 20. Qd3 {[%clk 0:02:15]}  Qh4 {[%clk 0:01:34]} 21. Rb3 {[%clk 0:01:50]}  Rf7 {[%clk 0:00:50]} 22. Qd2 {[%clk 0:01:42]}  h6 {[%clk 0:00:29]} 23. Rd3 {[%clk 0:01:22]}  Raf8 {[%clk 0:00:28]} 24. Bxf5 {[%clk 0:01:16]}  Rxf5 {[%clk 0:00:27]} 25. Ng3 {[%clk 0:01:10]}  e5 {[%clk 0:00:22]} 26. Nxf5 {[%clk 0:00:59]}  Rxf5 {[%clk 0:00:23]} 27. f4 {[%clk 0:00:47]}  exf4 {[%clk 0:00:13]} 28. Bf2 {[%clk 0:00:45]}  Qh5 {[%clk 0:00:12]} 29. Kh2 {[%clk 0:00:36]}  f3 {[%clk 0:00:12]} 30. Qe3 {[%clk 0:00:32]}  Kh7 {[%clk 0:00:12]} 31. Rg1 {[%clk 0:00:30]}  Rf7 {[%clk 0:00:08]} 32. Qe6 {[%clk 0:00:22]}  Qf5 {[%clk 0:00:03]} 33. Qxf5 {[%clk 0:00:22]}  Rxf5 {[%clk 0:00:04]} 34. Rg3 {[%clk 0:00:20]}  h5 {[%clk 0:00:02]} 35. Rgxf3 {[%clk 0:00:21]}  Rxf3 {[%clk 0:00:03]} 36. Rxf3 {[%clk 0:00:22]}  Nxb4 {[%clk 0:00:02]} 37. Rf7 {[%clk 0:00:21]}  Kh6 {[%clk 0:00:02]} 38. Be3+ {[%clk 0:00:19]}  g5 {[%clk 0:00:02]} 39. Bxg5+ {[%clk 0:00:16]}  Kg6 {[%clk 0:00:02]} 40. Rxb7 {[%clk 0:00:16]}  Nc2 {[%clk 0:00:02]} 41. c6 {[%clk 0:00:15]}  Nxd4 {[%clk 0:00:03]} 42. c7 {[%clk 0:00:15]}  Be5+ {[%clk 0:00:03]} 43. Kg2 {[%clk 0:00:11]}  Bxc7 {[%clk 0:00:03]} 44. Rxc7 {[%clk 0:00:10]}  Kxg5 {[%clk 0:00:04]} 45. Rc5 {[%clk 0:00:10]}  Ne6 {[%clk 0:00:01]} 46. Rxd5+ {[%clk 0:00:10]}  Kf4 {[%clk 0:00:02]} 47. Ra5 {[%clk 0:00:10]}  Nd4 {[%clk 0:00:01]} 48. Rxa6 {[%clk 0:00:10]}  h4 {[%clk 0:00:02]} 49. Ra4 {[%clk 0:00:09]}  Ke3 {[%clk 0:00:02]} 50. Rxd4 {[%clk 0:00:09]}  Kxd4 {[%clk 0:00:02]} 51. Kf3 {[%clk 0:00:10]} 1-0


[Site "https://www.chess.com"]

[Event "Titled Tuesday Blitz February 28 Early 2023"]
[White "Harsh Suresh"]
[Black "Mouhamad, Joachim"]
[WhiteFideId "45018464"]
[BlackFideId "656410"]
[WhiteElo "2227"]
[BlackElo "2164"]
[Result "1-0"]
[Round "01"]
[TimeControl "180+2"]
[Date "2023.02.28"]
[WhiteClock "0:00:04"]
[BlackClock "0:00:06"]

1. e4 {[%clk 0:02:57]}  c5 {[%clk 0:02:59]} 2. Nc3 {[%clk 0:02:50]}  Nc6 {[%clk 0:02:59]} 3. Bb5 {[%clk 0:02:44]}  Nd4 {[%clk 0:02:58]} 4. Bc4 {[%clk 0:02:42]}  e6 {[%clk 0:02:57]} 5. Nf3 {[%clk 0:02:37]}  Nf6 {[%clk 0:02:57]} 6. O-O {[%clk 0:02:36]}  a6 {[%clk 0:02:56]} 7. e5 {[%clk 0:02:24]}  d5 {[%clk 0:02:55]} 8. exf6 {[%clk 0:02:18]}  dxc4 {[%clk 0:02:53]} 9. fxg7 {[%clk 0:02:18]}  Bxg7 {[%clk 0:02:54]} 10. d3 {[%clk 0:02:18]}  cxd3 {[%clk 0:02:45]} 11. cxd3 {[%clk 0:02:18]}  Bd7 {[%clk 0:02:41]} 12. Ne4 {[%clk 0:02:10]}  Bc6 {[%clk 0:02:27]} 13. Nxd4 {[%clk 0:01:50]}  Bxd4 {[%clk 0:02:14]} 14. Bg5 {[%clk 0:01:14]}  f6 {[%clk 0:02:12]} 15. Qh5+ {[%clk 0:01:14]}  Kd7 {[%clk 0:02:12]} 16. Qf7+ {[%clk 0:01:13]}  Qe7 {[%clk 0:02:01]} 17. Nxf6+ {[%clk 0:01:08]}  Bxf6 {[%clk 0:02:00]} 18. Qxf6 {[%clk 0:01:09]}  Qxf6 {[%clk 0:01:56]} 19. Bxf6 {[%clk 0:01:10]}  Rhg8 {[%clk 0:01:56]} 20. f3 {[%clk 0:01:07]}  Raf8 {[%clk 0:01:51]} 21. Bc3 {[%clk 0:00:56]}  Rxf3 {[%clk 0:01:50]} 22. Rxf3 {[%clk 0:00:56]}  Bxf3 {[%clk 0:01:49]} 23. g3 {[%clk 0:00:57]}  Bd5 {[%clk 0:01:43]} 24. Rf1 {[%clk 0:00:48]}  Ke7 {[%clk 0:01:30]} 25. Bf6+ {[%clk 0:00:34]}  Ke8 {[%clk 0:01:27]} 26. b3 {[%clk 0:00:32]}  Rf8 {[%clk 0:01:20]} 27. g4 {[%clk 0:00:29]}  Rg8 {[%clk 0:01:02]} 28. h3 {[%clk 0:00:26]}  h5 {[%clk 0:01:01]} 29. g5 {[%clk 0:00:26]}  Kf7 {[%clk 0:00:55]} 30. h4 {[%clk 0:00:22]}  Ke8 {[%clk 0:00:38]} 31. Kf2 {[%clk 0:00:22]}  Kd7 {[%clk 0:00:31]} 32. Ke3 {[%clk 0:00:22]}  b5 {[%clk 0:00:28]} 33. Kf4 {[%clk 0:00:20]}  Kd6 {[%clk 0:00:27]} 34. Ke3 {[%clk 0:00:20]}  c4 {[%clk 0:00:25]} 35. dxc4 {[%clk 0:00:17]}  bxc4 {[%clk 0:00:25]} 36. bxc4 {[%clk 0:00:12]}  Bxc4 {[%clk 0:00:26]} 37. Rd1+ {[%clk 0:00:13]}  Bd5 {[%clk 0:00:26]} 38. a3 {[%clk 0:00:12]}  e5 {[%clk 0:00:24]} 39. Rb1 {[%clk 0:00:11]}  Rc8 {[%clk 0:00:20]} 40. g6 {[%clk 0:00:04]}  Rc3+ {[%clk 0:00:18]} 41. Ke2 {[%clk 0:00:04]}  Rxa3 {[%clk 0:00:18]} 42. g7 {[%clk 0:00:04]}  Rg3 {[%clk 0:00:13]} 43. Bg5 {[%clk 0:00:04]}  Kc7 {[%clk 0:00:07]} 44. Rd1 {[%clk 0:00:03]}  Bc4+ {[%clk 0:00:04]} 45. Kf2 {[%clk 0:00:04]}  Rc3 {[%clk 0:00:03]} 46. Re1 {[%clk 0:00:03]}  Rc2+ {[%clk 0:00:04]} 47. Kg3 {[%clk 0:00:03]}  Rc3+ {[%clk 0:00:03]} 48. Kf2 {[%clk 0:00:02]}  Rc2+ {[%clk 0:00:03]} 49. Kg1 {[%clk 0:00:03]}  Rb2 {[%clk 0:00:02]} 50. Rc1 {[%clk 0:00:03]}  Rb8 {[%clk 0:00:03]} 51. Rxc4+ {[%clk 0:00:03]}  Kd6 {[%clk 0:00:03]} 52. Rc1 {[%clk 0:00:03]}  Ke6 {[%clk 0:00:04]} 53. Bh6 {[%clk 0:00:04]}  Kf5 {[%clk 0:00:05]} 54. Rf1+ {[%clk 0:00:04]}  Kg4 {[%clk 0:00:05]} 55. Rf8 {[%clk 0:00:05]}  Kg3 {[%clk 0:00:06]} 56. Rxb8 {[%clk 0:00:04]} 1-0


[Site "https://www.chess.com"]

[Event "Titled Tuesday Blitz February 28 Early 2023"]
[White "Sargissyan, Sargis"]
[Black "Maximov, Dmitry"]
[WhiteFideId "13303210"]
[BlackFideId "14105659"]
[WhiteElo "2109"]
[BlackElo "2494"]
[Result "0-1"]
[Round "01"]
[TimeControl "180+2"]
[Date "2023.02.28"]
[WhiteClock "0:00:01"]
[BlackClock "0:00:13"]

1. e4 {[%clk 0:02:57]}  c5 {[%clk 0:02:59]} 2. Nf3 {[%clk 0:02:57]}  d6 {[%clk 0:03:00]} 3. d4 {[%clk 0:02:57]}  cxd4 {[%clk 0:03:00]} 4. Nxd4 {[%clk 0:02:57]}  Nf6 {[%clk 0:03:01]} 5. Nc3 {[%clk 0:02:58]}  a6 {[%clk 0:03:01]} 6. f4 {[%clk 0:02:56]}  Nbd7 {[%clk 0:03:00]} 7. f5 {[%clk 0:02:44]}  g6 {[%clk 0:02:56]} 8. g4 {[%clk 0:02:42]}  Bg7 {[%clk 0:02:50]} 9. g5 {[%clk 0:02:31]}  Nh5 {[%clk 0:02:47]} 10. Be2 {[%clk 0:02:32]}  Qb6 {[%clk 0:02:28]} 11. f6 {[%clk 0:02:30]}  exf6 {[%clk 0:02:24]} 12. Nd5 {[%clk 0:02:28]}  Qd8 {[%clk 0:02:11]} 13. Bxh5 {[%clk 0:02:24]}  fxg5 {[%clk 0:02:06]} 14. Be2 {[%clk 0:01:41]}  O-O {[%clk 0:02:05]} 15. O-O {[%clk 0:01:41]}  Nc5 {[%clk 0:01:57]} 16. Bf3 {[%clk 0:01:27]}  Re8 {[%clk 0:01:56]} 17. Re1 {[%clk 0:01:10]}  g4 {[%clk 0:01:47]} 18. Bg2 {[%clk 0:01:11]}  h5 {[%clk 0:01:05]} 19. Bf4 {[%clk 0:01:01]}  g5 {[%clk 0:01:00]} 20. Bc1 {[%clk 0:00:29]}  Be6 {[%clk 0:00:48]} 21. Nxe6 {[%clk 0:00:18]}  fxe6 {[%clk 0:00:48]} 22. Nc3 {[%clk 0:00:16]}  Be5 {[%clk 0:00:42]} 23. Be3 {[%clk 0:00:14]}  Qf6 {[%clk 0:00:41]} 24. Qd2 {[%clk 0:00:14]}  Bf4 {[%clk 0:00:39]} 25. Rf1 {[%clk 0:00:13]}  Rf8 {[%clk 0:00:38]} 26. Rad1 {[%clk 0:00:09]}  Rad8 {[%clk 0:00:37]} 27. Qe1 {[%clk 0:00:04]}  b5 {[%clk 0:00:33]} 28. Bd4 {[%clk 0:00:04]}  Qg6 {[%clk 0:00:24]} 29. e5 {[%clk 0:00:04]}  d5 {[%clk 0:00:25]} 30. Bxc5 {[%clk 0:00:04]}  Rf7 {[%clk 0:00:25]} 31. Bd4 {[%clk 0:00:04]}  b4 {[%clk 0:00:25]} 32. Ne2 {[%clk 0:00:03]}  h4 {[%clk 0:00:23]} 33. Nxf4 {[%clk 0:00:03]}  gxf4 {[%clk 0:00:22]} 34. Qxh4 {[%clk 0:00:03]}  Rdf8 {[%clk 0:00:22]} 35. Rf2 {[%clk 0:00:03]}  Rh7 {[%clk 0:00:22]} 36. Qf6 {[%clk 0:00:01]}  Rxf6 {[%clk 0:00:22]} 37. exf6 {[%clk 0:00:02]}  f3 {[%clk 0:00:21]} 38. Bf1 {[%clk 0:00:02]}  g3 {[%clk 0:00:20]} 39. Rxf3 {[%clk 0:00:02]}  gxh2+ {[%clk 0:00:20]} 40. Kh1 {[%clk 0:00:02]}  Kf7 {[%clk 0:00:18]} 41. Bg2 {[%clk 0:00:02]}  a5 {[%clk 0:00:17]} 42. Rd2 {[%clk 0:00:02]}  Qe4 {[%clk 0:00:16]} 43. Rf1 {[%clk 0:00:01]}  Qg4 {[%clk 0:00:14]} 44. Rdf2 {[%clk 0:00:01]}  Qxd4 {[%clk 0:00:13]} 0-1


[Site "https://www.chess.com"]

[Event "Titled Tuesday Blitz February 28 Early 2023"]
[White "Amin, Bassem"]
[Black "Seletsky, Grigory"]
[WhiteFideId "10601457"]
[BlackFideId "14112191"]
[WhiteElo "2690"]
[BlackElo "2490"]
[Result "1-0"]
[Round "01"]
[TimeControl "180+2"]
[Date "2023.02.28"]
[WhiteClock "0:00:04"]
[BlackClock "0:00:05"]

1. e4 {[%clk 0:02:59]}  c6 {[%clk 0:02:59]} 2. d4 {[%clk 0:02:59]}  d5 {[%clk 0:03:00]} 3. exd5 {[%clk 0:03:00]}  cxd5 {[%clk 0:03:00]} 4. c4 {[%clk 0:03:01]}  Nf6 {[%clk 0:02:59]} 5. Nc3 {[%clk 0:03:01]}  e6 {[%clk 0:02:59]} 6. Nf3 {[%clk 0:03:01]}  Nc6 {[%clk 0:03:00]} 7. cxd5 {[%clk 0:03:00]}  Nxd5 {[%clk 0:02:59]} 8. Bd3 {[%clk 0:03:01]}  Be7 {[%clk 0:02:59]} 9. O-O {[%clk 0:03:01]}  O-O {[%clk 0:03:00]} 10. Re1 {[%clk 0:03:02]}  b6 {[%clk 0:02:54]} 11. Nxd5 {[%clk 0:03:00]}  Qxd5 {[%clk 0:02:53]} 12. Be4 {[%clk 0:02:54]}  Qd6 {[%clk 0:02:53]} 13. Qc2 {[%clk 0:02:52]}  Bb7 {[%clk 0:02:54]} 14. Bxh7+ {[%clk 0:02:45]}  Kh8 {[%clk 0:02:54]} 15. Be4 {[%clk 0:02:28]}  Rac8 {[%clk 0:02:47]} 16. Qb3 {[%clk 0:02:08]}  Bf6 {[%clk 0:02:29]} 17. Ne5 {[%clk 0:02:00]}  g6 {[%clk 0:02:19]} 18. Qh3+ {[%clk 0:01:38]}  Kg8 {[%clk 0:02:17]} 19. Bf4 {[%clk 0:01:30]}  Qe7 {[%clk 0:02:01]} 20. Nxc6 {[%clk 0:00:39]}  Bxc6 {[%clk 0:02:00]} 21. Bxc6 {[%clk 0:00:20]}  Rxc6 {[%clk 0:01:57]} 22. d5 {[%clk 0:00:20]}  Rc4 {[%clk 0:01:55]} 23. Qg3 {[%clk 0:00:19]}  Bh4 {[%clk 0:01:35]} 24. Qf3 {[%clk 0:00:16]}  Qf6 {[%clk 0:01:30]} 25. Bd6 {[%clk 0:00:04]}  Qxf3 {[%clk 0:01:27]} 26. gxf3 {[%clk 0:00:05]}  Re8 {[%clk 0:01:27]} 27. dxe6 {[%clk 0:00:05]}  Rxe6 {[%clk 0:01:27]} 28. Rxe6 {[%clk 0:00:05]}  fxe6 {[%clk 0:01:28]} 29. b3 {[%clk 0:00:03]}  Rc2 {[%clk 0:01:27]} 30. Bg3 {[%clk 0:00:04]}  Bxg3 {[%clk 0:01:25]} 31. hxg3 {[%clk 0:00:04]}  Kf7 {[%clk 0:01:25]} 32. Kg2 {[%clk 0:00:04]}  e5 {[%clk 0:01:25]} 33. Re1 {[%clk 0:00:03]}  Kf6 {[%clk 0:01:26]} 34. a4 {[%clk 0:00:03]}  a5 {[%clk 0:01:19]} 35. Re3 {[%clk 0:00:04]}  Rb2 {[%clk 0:01:18]} 36. Rc3 {[%clk 0:00:04]}  Kf5 {[%clk 0:01:17]} 37. g4+ {[%clk 0:00:03]}  Kf4 {[%clk 0:01:13]} 38. Re3 {[%clk 0:00:03]}  Rb1 {[%clk 0:00:33]} 39. Re4+ {[%clk 0:00:03]}  Kg5 {[%clk 0:00:33]} 40. Rxe5+ {[%clk 0:00:04]}  Kf4 {[%clk 0:00:18]} 41. Rb5 {[%clk 0:00:05]}  Rb2 {[%clk 0:00:12]} 42. Rxb6 {[%clk 0:00:05]}  g5 {[%clk 0:00:12]} 43. Rb5 {[%clk 0:00:05]}  Rxf2+ {[%clk 0:00:11]} 44. Kg1 {[%clk 0:00:04]}  Rf1+ {[%clk 0:00:09]} 45. Kxf1 {[%clk 0:00:04]}  Kg3 {[%clk 0:00:05]} 46. Rxg5 {[%clk 0:00:04]} 1-0


[Site "https://www.chess.com"]

[Event "Titled Tuesday Blitz February 28 Early 2023"]
[White "Heinemann, Josefine"]
[Black "Sattarov, Bobir"]
[WhiteFideId "12900460"]
[BlackFideId "14203081"]
[WhiteElo "2342"]
[BlackElo "2351"]
[Result "0-1"]
[Round "01"]
[TimeControl "180+2"]
[Date "2023.02.28"]
[WhiteClock "0:00:11"]
[BlackClock "0:02:00"]

1. e4 {[%clk 0:02:59]}  e5 {[%clk 0:02:59]} 2. Nf3 {[%clk 0:02:56]}  Nc6 {[%clk 0:02:59]} 3. Bb5 {[%clk 0:02:52]}  a6 {[%clk 0:02:59]} 4. Ba4 {[%clk 0:02:51]}  Bc5 {[%clk 0:02:59]} 5. c3 {[%clk 0:02:49]}  Qf6 {[%clk 0:02:59]} 6. O-O {[%clk 0:02:47]}  Nge7 {[%clk 0:02:59]} 7. d3 {[%clk 0:02:40]}  h6 {[%clk 0:02:59]} 8. Be3 {[%clk 0:02:38]}  Ba7 {[%clk 0:02:59]} 9. Nbd2 {[%clk 0:02:22]}  O-O {[%clk 0:02:58]} 10. Bc2 {[%clk 0:01:57]}  d6 {[%clk 0:02:58]} 11. Bxa7 {[%clk 0:01:50]}  Rxa7 {[%clk 0:02:59]} 12. Nc4 {[%clk 0:01:51]}  Ng6 {[%clk 0:02:58]} 13. Ne3 {[%clk 0:01:32]}  Nce7 {[%clk 0:02:57]} 14. d4 {[%clk 0:01:30]}  Ra8 {[%clk 0:02:56]} 15. h3 {[%clk 0:01:22]}  Nf4 {[%clk 0:02:56]} 16. Nh2 {[%clk 0:01:14]}  Qg5 {[%clk 0:02:56]} 17. Kh1 {[%clk 0:01:06]}  Be6 {[%clk 0:02:55]} 18. Qf3 {[%clk 0:01:05]}  Rad8 {[%clk 0:02:54]} 19. Rad1 {[%clk 0:00:52]}  Neg6 {[%clk 0:02:53]} 20. Qg3 {[%clk 0:00:33]}  Qf6 {[%clk 0:02:53]} 21. Nhg4 {[%clk 0:00:32]}  Bxg4 {[%clk 0:02:52]} 22. Nxg4 {[%clk 0:00:31]}  Qg5 {[%clk 0:02:52]} 23. Kh2 {[%clk 0:00:26]}  h5 {[%clk 0:02:46]} 24. Ne3 {[%clk 0:00:26]}  Qf6 {[%clk 0:02:46]} 25. Nf5 {[%clk 0:00:25]}  Ne7 {[%clk 0:02:35]} 26. Ne3 {[%clk 0:00:17]}  h4 {[%clk 0:02:34]} 27. Qg4 {[%clk 0:00:16]}  g6 {[%clk 0:02:33]} 28. g3 {[%clk 0:00:15]}  Ne6 {[%clk 0:02:32]} 29. gxh4 {[%clk 0:00:14]}  exd4 {[%clk 0:02:31]} 30. cxd4 {[%clk 0:00:14]}  Nxd4 {[%clk 0:02:31]} 31. Bb1 {[%clk 0:00:13]}  Nf3+ {[%clk 0:02:31]} 32. Kh1 {[%clk 0:00:13]}  c6 {[%clk 0:02:10]} 33. Ng2 {[%clk 0:00:12]}  Kg7 {[%clk 0:02:04]} 34. h5 {[%clk 0:00:12]}  Rh8 {[%clk 0:02:03]} 35. hxg6 {[%clk 0:00:12]}  Nxg6 {[%clk 0:02:03]} 36. e5 {[%clk 0:00:11]}  Nxe5 {[%clk 0:02:01]} 37. Qg3 {[%clk 0:00:12]}  Rxh3+ {[%clk 0:02:01]} 38. Qxh3 {[%clk 0:00:11]}  Rh8 {[%clk 0:02:02]} 39. Qxh8+ {[%clk 0:00:12]}  Kxh8 {[%clk 0:02:02]} 40. f4 {[%clk 0:00:13]}  Ng4 {[%clk 0:02:01]} 41. Bxg6 {[%clk 0:00:12]}  Qxg6 {[%clk 0:02:00]} 42. Kg1 {[%clk 0:00:12]}  Qh6 {[%clk 0:01:59]} 43. Rf3 {[%clk 0:00:11]}  Qh2+ {[%clk 0:01:59]} 44. Kf1 {[%clk 0:00:11]}  Qh1+ {[%clk 0:02:00]} 0-1


[Site "https://www.chess.com"]

[Event "Titled Tuesday Blitz February 28 Early 2023"]
[White "Christiansen, Johan-Sebastian"]
[Black "Zia, Tahsin Tajwar"]
[WhiteFideId "1512668"]
[BlackFideId "10211888"]
[WhiteElo "2517"]
[BlackElo "2061"]
[Result "1-0"]
[Round "01"]
[TimeControl "180+2"]
[Date "2023.02.28"]
[WhiteClock "0:02:30"]
[BlackClock "0:01:33"]

1. e4 {[%clk 0:02:54]}  c6 {[%clk 0:02:56]} 2. d4 {[%clk 0:02:53]}  d5 {[%clk 0:02:54]} 3. Nd2 {[%clk 0:02:54]}  dxe4 {[%clk 0:02:54]} 4. Nxe4 {[%clk 0:02:55]}  Nf6 {[%clk 0:02:54]} 5. Nxf6+ {[%clk 0:02:55]}  exf6 {[%clk 0:02:55]} 6. Bd3 {[%clk 0:02:56]}  Bd6 {[%clk 0:02:55]} 7. Qh5 {[%clk 0:02:55]}  g6 {[%clk 0:02:53]} 8. Qh6 {[%clk 0:02:55]}  Qe7+ {[%clk 0:02:39]} 9. Ne2 {[%clk 0:02:55]}  Nd7 {[%clk 0:02:37]} 10. Qg7 {[%clk 0:02:51]}  Qf8 {[%clk 0:02:31]} 11. Bh6 {[%clk 0:02:44]}  Qxg7 {[%clk 0:02:30]} 12. Bxg7 {[%clk 0:02:45]}  Rg8 {[%clk 0:02:31]} 13. Bh6 {[%clk 0:02:45]}  Nb6 {[%clk 0:02:21]} 14. c4 {[%clk 0:02:40]}  c5 {[%clk 0:02:13]} 15. b4 {[%clk 0:02:33]}  Nd7 {[%clk 0:01:33]} 16. bxc5 {[%clk 0:02:31]}  Bf8 {[%clk 0:01:33]} 17. Bf4 {[%clk 0:02:30]} 1-0


[Site "https://www.chess.com"]

[Event "Titled Tuesday Blitz February 28 Early 2023"]
[White "Devaev, Alexander"]
[Black "Cabarkapa, Novak"]
[WhiteFideId "4169395"]
[BlackFideId "943746"]
[WhiteElo "2225"]
[BlackElo "2395"]
[Result "0-1"]
[Round "01"]
[TimeControl "180+2"]
[Date "2023.02.28"]
[WhiteClock "0:00:33"]
[BlackClock "0:01:44"]

1. d4 {[%clk 0:02:59]}  Nf6 {[%clk 0:02:59]} 2. c4 {[%clk 0:03:00]}  g6 {[%clk 0:02:59]} 3. Nc3 {[%clk 0:02:59]}  Bg7 {[%clk 0:03:00]} 4. e4 {[%clk 0:02:59]}  O-O {[%clk 0:03:00]} 5. Nf3 {[%clk 0:02:59]}  c6 {[%clk 0:03:01]} 6. h3 {[%clk 0:02:57]}  d5 {[%clk 0:03:01]} 7. e5 {[%clk 0:02:39]}  Ne4 {[%clk 0:03:01]} 8. Bd3 {[%clk 0:02:40]}  Bf5 {[%clk 0:03:01]} 9. Qc2 {[%clk 0:02:38]}  Nxc3 {[%clk 0:02:43]} 10. Bxf5 {[%clk 0:02:34]}  gxf5 {[%clk 0:02:42]} 11. bxc3 {[%clk 0:02:35]}  dxc4 {[%clk 0:02:37]} 12. Qxf5 {[%clk 0:02:34]}  e6 {[%clk 0:02:37]} 13. Qh5 {[%clk 0:02:31]}  f6 {[%clk 0:02:32]} 14. O-O {[%clk 0:02:14]}  Nd7 {[%clk 0:02:23]} 15. Bh6 {[%clk 0:01:22]}  Rf7 {[%clk 0:02:14]} 16. Rae1 {[%clk 0:01:15]}  Qf8 {[%clk 0:02:03]} 17. Bxg7 {[%clk 0:01:11]}  Rxg7 {[%clk 0:02:03]} 18. exf6 {[%clk 0:01:10]}  Nxf6 {[%clk 0:02:03]} 19. Qh4 {[%clk 0:01:02]}  Nd5 {[%clk 0:01:56]} 20. Ng5 {[%clk 0:01:02]}  Qf6 {[%clk 0:01:49]} 21. f4 {[%clk 0:00:58]}  Nxc3 {[%clk 0:01:47]} 22. Rxe6 {[%clk 0:00:58]}  Qxd4+ {[%clk 0:01:47]} 23. Kh1 {[%clk 0:00:41]}  Nd5 {[%clk 0:01:46]} 24. f5 {[%clk 0:00:33]}  Qxh4 {[%clk 0:01:44]} 0-1


[Site "https://www.chess.com"]